bitfinex/quotes_ETHUSD_20220202
["timestamp","ask_amount","ask_price","bid_price","bid_amount"]
[1643834877224,1.86448558,2709.8,2709.2,0.00519299]
[1643834877426,0.3,2709.8,2709.2,0.00519299]
[1643834877826,1.56453854,2709.7,2709.1,0.00444036]
[1643834878026,0.210097,2709.3,2709.2,0.00519295]
[1643834878325,0.210097,2709.3,2708.9,1.84536]
[1643834878530,0.89744963,2709.2,2708.9,1.84536]
[1643834878928,0.89744963,2709.2,2708.7,0.37383901]
[1643834878929,0.89744963,2709.2,2708.7,2.02991]
[1643834880178,0.89455763,2709.2,2708.7,2.02991]
[1643834880378,0.89455763,2709.2,2708.8,0.00300026]
[1643834881278,1.10727,2709.8,2708.7,2.02991]
[1643834881480,1.56460873,2709.7,2709.1,0.00404957]
[1643834881682,0.00519212,2709.4,2709.1,0.00404957]
[1643834882294,0.00519212,2709.4,2709.2,0.96021035]
[1643834882480,0.02076368,2710.0,2709.3,7.2]
[1643834882678,0.69841903,2710.8,2710.0,1.84458]
[1643834882679,0.1844,2710.5,2710.0,1.84458]
[1643834882879,0.69841903,2710.8,2710.0,1.84458]
[1643834882880,1.56424,2710.4,2710.0,1.84458]
[1643834883082,1.56424,2710.3,2710.0,1.84458]
[1643834883332,0.1844,2710.8,2710.0,1.84458]
[1643834883628,1.56399081,2710.7,2710.0,3.56366]
[1643834883826,1.56399081,2710.6,2710.4,1.84428]
[1643834884027,0.00519105,2710.5,2710.4,1.84428]
[1643834884628,0.00519105,2710.5,2710.4,2.06667549]
[1643834884927,1.56392526,2710.5,2710.4,2.06667549]
[1643834885229,0.02076088,2711.0,2710.7,0.92214]
[1643834885629,1.5638832,2710.9,2710.7,0.92214]
[1643834886428,1.5638832,2710.8,2710.7,0.92214]
[1643834887309,1.5638832,2710.8,2710.4,1.84428]
[1643834887604,0.88997917,2711.0,2710.4,1.84428]
[1643834887605,1.5638832,2710.7,2710.4,1.84428]
[1643834887805,1.5638832,2710.6,2710.4,1.84428]
[1643834888006,1.5638832,2710.5,2710.4,1.84428]
[1643834888210,1.5638832,2710.8,2710.4,1.84428]
[1643834888805,1.56907403,2710.7,2710.4,1.84428]
[1643834889110,1.5638832,2710.6,2710.4,1.84428]
[1643834889906,1.5638832,2710.5,2710.4,1.84428]
[1643834891125,0.005191,2710.6,2710.4,1.84428]
[1643834891327,1.5638832,2710.5,2710.4,1.84428]
[1643834892528,0.005191,2710.6,2710.4,1.84428]
[1643834892726,1.5638832,2710.5,2710.4,1.84428]
[1643834893127,1.5638832,2710.5,2710.1,0.1844]
[1643834893327,1.5638832,2710.5,2709.9,0.1844]
[1643834893526,0.69841903,2710.8,2709.5,11.033]
[1643834893527,1.5638832,2710.4,2709.6,0.1844]
[1643834893727,1.5638832,2710.3,2709.6,0.36888]
[1643834893927,0.005191,2710.6,2709.6,0.36888]
[1643834893928,1.5638832,2710.2,2709.6,0.36888]
[1643834894132,1.72942092,2710.1,2709.9,1.84464]
[1643834894330,1.5642364,2710.0,2709.6,0.1844]
[1643834894781,1.5642364,2710.0,2709.8,0.92244]
[1643834894977,0.1844,2710.5,2709.8,0.92244]
[1643834894978,0.00519149,2710.1,2709.8,0.92244]
[1643834895379,1.56427148,2710.0,2709.8,0.92244]
[1643834895983,0.00519161,2710.0,2709.8,0.92244]
[1643834896382,0.00519161,2710.0,2709.8,0.92647819]
[1643834896881,0.20516331,2710.4,2709.8,0.92647819]
[1643834897180,2.65996786,2710.3,2710.0,0.92236]
[1643834897384,1.41398545,2710.2,2709.8,0.00403819]
[1643834897582,2.09821048,2710.1,2709.8,0.00403819]
[1643834897883,2.98102951,2710.1,2709.8,0.00403819]
[1643834898332,5.89841903,2710.0,2709.1,0.00299678]
[1643834898532,2.48296115,2709.9,2709.1,0.00299678]
[1643834898732,0.74373,2709.2,2709.1,0.00299678]
[1643834899330,0.74373,2709.2,2708.9,0.13819997]
[1643834899532,0.74373,2709.2,2709.0,0.00299683]
[1643834900537,0.74373,2709.2,2708.9,0.13819997]
[1643834900734,0.74373,2709.2,2709.0,0.0051937]
[1643834901543,5.24792266,2709.1,2709.0,0.0051937]
[1643834901743,5.24792266,2709.1,2708.6,0.1844]
[1643834901979,0.1844,2709.0,2708.6,0.1844]
[1643834902176,0.99777929,2708.4,2708.1,1.84585]
[1643834902379,0.99777929,2708.4,2708.0,0.1344]
[1643834902586,0.99777929,2708.4,2707.9,0.1845]
[1643834902587,2.06,2708.3,2707.9,0.1845]
[1643834902778,1.29777929,2708.4,2707.8,0.02078359]
[1643834902977,1.29777929,2708.4,2707.6,0.92487089]
[1643834903177,1.29777929,2708.4,2707.7,0.00171089]
[1643834903377,1.29777929,2708.4,2708.0,0.00519481]
[1643834904277,1.29777929,2708.4,2707.9,0.92487089]
[1643834904480,1.29777929,2708.4,2708.1,0.00299782]
[1643834904679,0.1845,2708.6,2708.1,0.00299782]
[1643834904881,0.1845,2708.7,2708.1,0.00299782]
[1643834905083,0.1845,2708.8,2708.1,0.00299782]
[1643834905279,0.1845,2708.8,2708.0,1.84605]
[1643834905280,0.1844,2709.0,2708.0,1.84605]
[1643834905479,0.1845,2709.3,2708.1,0.1845]
[1643834905730,0.98643654,2708.9,2708.4,0.17297852]
[1643834905930,0.18959299,2709.4,2708.3,0.00519505]
[1643834906131,0.1844,2709.2,2708.7,0.92285]
[1643834906330,0.1844,2709.3,2708.7,0.92285]
[1643834906733,0.69841903,2709.6,2708.7,0.92285]
[1643834906734,2.21686222,2709.5,2708.7,0.92285]
[1643834906935,0.20193282,2708.8,2708.7,0.92285]
[1643834907130,0.20193282,2708.8,2708.3,2.03018]
[1643834907535,2.22459513,2708.8,2708.3,0.1844]
[1643834907738,2.52459513,2708.8,2708.3,0.1844]
[1643834907930,0.50193282,2708.8,2708.3,0.1844]
[1643834908135,1.1845,2708.7,2708.4,0.00519494]
[1643834908332,2.27425122,2708.6,2708.4,0.00519494]
[1643834908535,5.3845,2708.5,2708.4,0.00519494]
[1643834908730,8.3990631,2708.5,2708.4,0.00519494]
[1643834909130,5.58566982,2708.4,2707.8,0.00173805]
[1643834909331,2.07319587,2708.3,2707.8,0.00173805]
[1643834909576,0.7256095,2707.9,2707.8,0.02252204]
[1643834909780,0.92632261,2707.9,2707.8,0.02252204]
[1643834909977,1.22632261,2707.9,2707.8,0.02252204]
[1643834910177,0.3,2707.9,2707.8,0.00173805]
[1643834910381,2.62904887,2708.7,2707.7,0.90458604]
[1643834910578,0.00519519,2708.0,2707.7,0.90978184]
[1643834911078,0.18709215,2708.0,2707.7,0.90978184]
[1643834911278,0.78706982,2708.2,2707.7,0.90978184]
[1643834911579,0.78706982,2708.2,2707.7,0.90632409]
[1643834912480,0.20126575,2708.1,2707.7,0.90632409]
[1643834912679,0.20126575,2708.1,2707.7,0.00173805]
[1643834914025,0.20069569,2708.1,2707.8,0.00519565]
[1643834914827,0.20069569,2708.1,2707.8,1.85136565]
[1643834914828,0.00519494,2708.1,2707.8,1.85136565]
[1643834915128,0.1845,2708.7,2707.8,4.92815051]
[1643834915330,0.1845,2709.0,2708.1,0.01298275]
[1643834915531,0.73102113,2708.6,2708.2,0.1845]
[1643834915730,0.19671968,2708.6,2708.2,0.1845]
[1643834915930,0.19671968,2708.6,2708.0,0.37588961]
[1643834916129,0.19671968,2708.6,2708.2,1.84588]
[1643834916329,0.19671968,2708.6,2708.3,0.1845]
[1643834916526,0.00519469,2708.4,2708.3,0.1845]
[1643834916728,0.00519469,2708.4,2708.2,1.84588]
[1643834916988,0.00519469,2708.4,2708.1,0.00173805]
[1643834917188,0.00519469,2708.4,2707.9,0.18772861]
[1643834917386,0.49671968,2708.6,2707.9,0.18772861]
[1643834917585,0.19671968,2708.6,2707.9,0.00322861]
[1643834917784,0.1845,2709.0,2707.9,0.00149056]
[1643834917785,0.00519475,2708.4,2707.9,0.00149056]
[1643834918187,0.00519475,2708.4,2708.2,0.92305]
[1643834918585,0.80402518,2709.0,2708.2,0.92305]
[1643834918783,1.10402518,2709.0,2708.1,1.84598]
[1643834918985,0.00519469,2708.4,2708.2,0.34507927]
[1643834919785,1.10402518,2709.0,2708.3,0.92298]
[1643834919984,0.3,2709.0,2708.3,0.92298]
[1643834920184,0.00519469,2708.4,2708.3,0.92298]
[1643834921129,0.22370089,2708.9,2708.3,0.92298]
[1643834921130,1.11445363,2708.9,2708.3,0.92298]
[1643834921329,0.00519464,2708.5,2708.3,0.92298]
[1643834921633,0.00519464,2708.5,2708.4,0.00148267]
[1643834922227,1.41445363,2708.9,2708.3,0.0004944]
[1643834922627,0.00519453,2708.6,2708.3,0.0004944]
[1643834923431,0.1845,2708.8,2708.0,0.00173805]
[1643834923627,1.56514971,2708.7,2708.0,0.00173805]
[1643834923828,1.56514971,2708.7,2707.6,1.10773]
[1643834923829,2.58579842,2708.6,2707.8,0.0051961]
[1643834924232,0.78450105,2707.9,2707.8,0.0051961]
[1643834924477,1.3,2708.5,2707.8,0.0051961]
[1643834924478,2.4996147,2708.4,2707.8,0.0051961]
[1643834924777,2.4996147,2708.4,2707.7,0.00173805]
[1643834924979,2.4996147,2708.4,2707.7,0.00472068]
[1643834925176,0.21633518,2707.9,2707.7,0.00472068]
[1643834925876,0.21633518,2707.9,2707.7,0.00173805]
[1643834926078,0.21633518,2707.9,2707.7,0.00693445]
[1643834927078,0.21633518,2707.9,2707.6,0.92323]
[1643834927477,0.21633518,2707.9,2707.7,0.0051964]
[1643834928326,0.21633518,2707.9,2707.6,0.92323]
[1643834928523,0.3,2708.0,2707.6,0.92323]
[1643834928729,2.4996147,2708.4,2707.7,0.0051964]
[1643834928730,0.30519549,2708.1,2707.7,0.0051964]
[1643834928923,0.30519549,2708.1,2707.7,0.00693445]
[1643834928924,0.00519549,2708.1,2707.7,0.00693445]
[1643834929122,0.30519549,2708.1,2707.7,0.00693445]
[1643834929323,0.00519549,2708.1,2707.7,0.00693445]
[1643834929523,0.72208008,2708.2,2707.7,0.00173805]
[1643834929723,0.17047772,2708.1,2707.7,0.00173805]
[1643834929924,0.17549794,2708.1,2707.8,0.00502091]
[1643834930326,0.17549794,2708.1,2707.8,0.92818091]
[1643834930728,0.00502022,2708.1,2707.8,0.92818091]
[1643834930927,1.02208008,2708.2,2707.8,0.92316]
[1643834930928,0.3,2708.2,2707.8,0.92316]
[1643834931130,1.2144,2709.0,2707.7,1.84622]
[1643834931131,0.1845,2708.6,2707.7,1.84622]
[1643834931347,6.99206693,2709.4,2707.7,1.84622]
[1643834931348,0.00470901,2708.1,2707.9,2.120893]
[1643834931531,0.1845,2709.2,2708.1,4.75]
[1643834931729,0.21586595,2709.0,2708.2,0.443]
[1643834931999,0.21586595,2709.0,2708.3,0.1844]
[1643834932184,0.74305611,2708.9,2708.3,0.18613805]
[1643834932385,0.74305611,2708.9,2708.4,1.84577]
[1643834932584,0.74305611,2708.9,2708.4,2.03017]
[1643834932785,3.55961155,2708.5,2708.4,0.1844]
[1643834932987,3.55961155,2708.5,2708.1,0.18613805]
[1643834933186,3.55961155,2708.5,2708.1,0.00173805]
[1643834933386,3.55961155,2708.5,2707.8,0.00307494]
[1643834933387,0.92049978,2708.2,2707.9,0.1845]
[1643834933585,0.92049978,2708.2,2707.9,0.18925254]
[1643834933890,0.3,2708.2,2707.9,0.18925254]
[1643834934185,2.01767567,2708.4,2707.9,0.18925254]
[1643834934390,3.01767567,2708.4,2707.9,0.00475254]
[1643834934588,1.56523806,2708.3,2708.0,0.00173805]
[1643834934787,2.07478005,2708.2,2708.0,0.00173805]
[1643834935188,2.07478005,2708.2,2707.9,0.00475242]
[1643834935189,5.48744759,2708.1,2707.9,0.00475242]
[1643834935390,5.54462436,2708.0,2707.9,0.00475242]
[1643834935588,6.54462436,2708.0,2707.9,0.00475242]
[1643834935837,6.54462436,2708.0,2707.8,0.00307494]
[1643834936037,6.54462436,2708.0,2707.8,0.00782735]
[1643834936038,5.30842159,2708.0,2707.8,0.00782735]
[1643834936238,4.85660765,2707.9,2707.8,0.00782735]
[1643834936442,2.8,2707.9,2707.8,0.00782735]
[1643834936639,2.8,2707.9,2707.8,0.00475241]
[1643834936844,3.1,2707.9,2707.8,0.00475241]
[1643834937039,3.1,2707.9,2707.3,0.00173805]
[1643834937339,3.1,2707.9,2707.3,0.0207802]
[1643834937340,1.09029032,2707.6,2707.3,0.0207802]
[1643834937542,0.3,2707.6,2707.4,0.92341]
[1643834937741,0.18591356,2708.0,2707.4,0.92341]
[1643834937742,0.48591356,2708.0,2707.4,0.92341]
[1643834937941,3.57588569,2707.9,2707.5,0.00173805]
[1643834938145,1.56541871,2707.8,2707.5,0.00173805]
[1643834938342,0.3,2707.8,2707.5,0.00173805]
[1643834938541,0.3,2707.8,2707.6,0.0050361]
[1643834938744,0.3,2708.0,2707.6,0.0050361]
[1643834938945,2.43069302,2707.9,2707.6,0.0050361]
[1643834939142,0.15817067,2707.8,2707.6,0.0050361]
[1643834939342,0.15817067,2707.8,2707.3,0.1845]
[1643834939581,0.15817067,2707.8,2707.6,0.00503604]
[1643834939781,1.16531816,2707.9,2707.6,0.00503604]
[1643834939981,1.56545156,2707.8,2707.6,0.00503604]
[1643834940384,1.56256656,2707.8,2707.6,0.00503604]
[1643834940586,1.56256656,2707.8,2707.4,0.00173805]
[1643834940785,0.3,2707.9,2707.7,0.18620606]
[1643834940990,0.18953485,2708.2,2707.7,0.18620606]
[1643834941282,0.00503485,2708.2,2707.7,0.18620606]
[1643834941488,0.00503485,2708.2,2707.7,0.19120127]
[1643834941686,0.1845,2708.5,2707.7,0.19120127]
[1643834941883,0.1845,2708.7,2708.4,0.1786496]
[1643834942085,0.1845,2708.9,2708.4,0.1786496]
[1643834942283,0.1844,2709.0,2708.4,0.1786496]
[1643834942485,0.69841903,2709.2,2708.4,0.1786496]
[1643834942682,0.1844,2709.1,2708.4,0.1786496]
[1643834942883,0.1844,2709.1,2708.0,0.18613805]
[1643834943230,0.1844,2709.1,2708.2,1.84578]
[1643834943231,0.00221673,2708.9,2708.2,1.84578]
[1643834943427,0.00221673,2708.9,2708.1,0.00173805]
[1643834943428,0.70063576,2708.9,2708.1,0.00173805]
[1643834943626,0.70063576,2708.9,2708.1,0.18623805]
[1643834943826,0.00221673,2708.9,2707.9,0.18623805]
[1643834944030,0.7072741,2708.6,2707.9,0.18623805]
[1643834944426,0.7072741,2708.6,2707.9,0.00173805]
[1643834944427,0.00221673,2708.5,2707.9,0.00173805]
[1643834944831,0.1845,2708.4,2707.9,0.00173805]
[1643834945031,4.85,2708.1,2707.7,0.00325716]
[1643834945231,6.62939352,2708.0,2707.9,0.00173972]
[1643834945433,7.50885765,2708.0,2707.9,0.00173972]
[1643834945830,7.50885765,2708.0,2707.8,0.00520242]
[1643834946031,0.1845,2708.0,2707.8,0.00520242]
[1643834946634,0.1845,2708.0,2707.4,0.21051078]
[1643834946838,0.69841903,2707.9,2707.8,0.00520242]
[1643834947099,5.88616693,2707.9,2707.8,0.00520242]
[1643834947299,6.88616693,2707.9,2707.8,0.00520242]
[1643834947498,7.88616692,2707.9,2707.8,0.00520242]
[1643834947698,9.28224714,2707.9,2706.9,0.00173972]
[1643834947902,1.70088469,2707.2,2706.9,0.00173972]
[1643834948105,1.70088469,2707.2,2706.6,0.18623972]
[1643834948106,0.7008847,2707.1,2706.6,0.18623972]
[1643834948298,0.7008847,2707.1,2706.6,0.00173972]
[1643834948299,0.443,2707.0,2706.6,0.00173972]
[1643834948497,1.1438847,2707.0,2706.6,0.00173972]
[1643834948698,1.1438847,2707.0,2705.9,0.18643972]
[1643834948900,0.94107152,2706.1,2705.9,0.18643972]
[1643834949398,0.94107152,2706.1,2705.9,0.1847]
[1643834950499,0.94107152,2706.1,2705.9,0.1899052]
[1643834951338,0.94107152,2706.1,2705.9,0.1847]
[1643834951536,0.94107152,2706.1,2706.0,0.00196149]
[1643834953037,4.87038,2706.1,2706.0,0.00196149]
[1643834953237,5.90190315,2705.9,2705.2,0.1847]
[1643834953437,5.90190315,2705.9,2705.0,0.92422]
[1643834953438,0.9212731,2705.4,2705.0,1.10892]
[1643834953639,0.9212731,2705.4,2705.0,0.92422]
[1643834954980,0.9212731,2705.4,2704.9,0.21732919]
[1643834955380,0.9183881,2705.4,2704.9,0.21732919]
[1643834956184,1.14323051,2705.4,2704.9,0.21732919]
[1643834956588,1.14323051,2705.4,2705.2,0.00139118]
[1643834956783,0.9183881,2705.4,2705.2,0.00139118]
[1643834957086,0.9140031,2705.4,2705.2,0.00139118]
[1643834957686,0.44820506,2705.6,2705.2,0.00659715]
[1643834958085,0.99999999,2705.4,2705.2,0.00659715]
[1643834958341,1.44299999,2705.4,2705.2,0.00659715]
[1643834958532,1.44299999,2705.4,2705.2,0.00139118]
[1643834958533,1.74299999,2705.4,2705.2,0.00139118]
[1643834958732,0.743,2705.4,2705.2,0.00139118]
[1643834958933,1.18469999,2705.3,2704.7,1.08412147]
[1643834959136,1.18469999,2705.3,2704.2,0.1847]
[1643834959137,1.13793986,2704.7,2704.2,0.1847]
[1643834959335,0.99999999,2704.3,2703.2,0.1847]
[1643834959540,0.99999999,2703.5,2703.0,0.1849]
[1643834959742,0.99999999,2703.5,2701.5,1.0721187]
[1643834959743,0.99999999,2703.1,2701.5,1.0721187]
[1643834959937,2.0,2703.0,2701.5,1.0721187]
[1643834960234,0.71999999,2702.5,2701.6,0.00174278]
[1643834960436,0.91456704,2702.4,2701.6,0.00174278]
[1643834960636,0.443,2702.3,2701.6,0.00174278]
[1643834960835,0.443,2702.3,2701.7,0.185]
[1643834961036,0.443,2702.3,2701.8,0.00174278]
[1643834961435,0.21536962,2701.9,2701.8,0.00174278]
[1643834961633,0.443,2702.0,2701.6,0.18674278]
[1643834962085,0.92616368,2702.5,2701.6,0.18674278]
[1643834962086,0.00449676,2702.5,2701.9,0.28]
[1643834962288,0.185,2702.8,2701.9,0.01264674]
[1643834962484,0.20166693,2703.0,2702.4,0.28]
[1643834962682,0.443,2702.9,2702.4,0.28]
[1643834962883,0.17819685,2702.5,2702.4,0.28]
[1643834963082,0.443,2702.9,2702.5,0.00174305]
[1643834963582,0.443,2702.9,2702.6,0.00523811]
[1643834963583,0.435547,2702.9,2702.6,0.00523811]
[1643834964386,0.393308,2703.4,2702.6,0.00523811]
[1643834964584,0.00664107,2703.4,2702.7,0.1849]
[1643834964984,0.00664107,2703.4,2702.8,0.00174305]
[1643834965185,0.18994944,2702.6,2702.4,0.28]
[1643834965386,0.443,2703.3,2702.4,2.12971]
[1643834965586,0.443,2703.3,2702.4,1.84971]
[1643834965837,0.38656693,2703.6,2702.4,1.84971]
[1643834965838,0.20166693,2703.6,2703.1,0.28]
[1643834966232,0.443,2703.8,2703.0,0.92483]
[1643834966431,0.00418323,2704.5,2703.3,0.28]
[1643834966432,0.21993016,2703.7,2703.3,0.28]
[1643834966632,0.21993016,2703.7,2703.2,1.19507222]
[1643834967034,0.71808023,2703.9,2703.2,1.19507222]
[1643834967233,0.71808023,2703.9,2703.4,0.9246]
[1643834967435,0.71808023,2703.9,2703.4,1.84926]
[1643834967632,0.20166693,2704.3,2703.7,0.28]
[1643834968138,0.17622447,2704.2,2703.8,0.1849]
[1643834968333,0.17622447,2704.2,2703.4,0.1849]
[1643834968532,0.7522076,2703.9,2703.4,2.03402]
[1643834968732,0.19295319,2703.7,2703.4,2.03402]
[1643834968933,0.7522076,2703.9,2703.4,0.1849]
[1643834969134,0.64073793,2704.3,2703.4,0.28]
[1643834969587,0.64073793,2704.3,2703.6,0.28]
[1643834969785,0.00523654,2703.8,2703.6,0.28]
[1643834970188,0.00523654,2703.8,2703.7,0.20615645]
[1643834970384,0.00523654,2703.8,2703.6,0.28]
[1643834970586,0.18574828,2704.2,2703.6,0.28]
[1643834970785,0.00523643,2703.9,2703.6,0.28]
[1643834971785,0.18574828,2704.2,2703.6,0.28]
[1643834972185,0.00523643,2703.9,2703.6,0.28]
[1643834972688,0.00523643,2703.9,2703.5,0.87457879]
[1643834972885,0.00523643,2703.9,2703.8,2.53]
[1643834973087,0.1849,2704.6,2704.2,0.78074615]
[1643834973332,0.13819997,2704.7,2703.8,3.6976]
[1643834973531,0.1847,2704.5,2703.8,3.6976]
[1643834973730,2.43175907,2704.7,2703.8,3.6976]
[1643834973930,0.21421831,2704.3,2703.8,3.6976]
[1643834974130,0.21421831,2704.3,2703.6,0.1849]
[1643834974333,0.90473853,2703.9,2703.6,0.1849]
[1643834975235,0.16192024,2703.8,2703.6,0.1849]
[1643834975833,0.1849,2704.1,2703.6,0.1849]
[1643834976033,0.1849,2704.2,2703.6,0.1849]
[1643834976233,0.1849,2704.4,2703.8,2.12888]
[1643834976435,0.1849,2704.7,2704.3,0.28]
[1643834976635,0.1847,2705.1,2703.9,0.01476393]
[1643834976834,0.2229726,2705.0,2704.7,0.28]
[1643834977085,0.1847,2705.1,2704.6,1.06190988]
[1643834977284,0.1847,2705.1,2704.6,0.78190988]
[1643834977484,0.1847,2705.1,2704.8,0.28]
[1643834977686,0.00369365,2705.2,2704.9,0.28]
[1643834977888,0.00369365,2705.2,2704.7,0.9242]
[1643834978084,0.00228381,2705.1,2705.0,0.16269756]
[1643834978285,0.1847,2705.9,2705.0,0.44269756]
[1643834978497,0.1847,2705.9,2705.4,0.92405]
[1643834979286,2.75767388,2705.5,2705.2,1.84803]
[1643834980186,2.75767388,2705.5,2705.1,0.0017412]
[1643834980587,2.13135946,2705.4,2705.1,0.0017412]
[1643834980835,2.31605946,2705.4,2704.9,0.0017412]
[1643834981035,1.56704931,2705.3,2704.9,0.0017412]
[1643834981239,1.76478724,2705.3,2704.9,0.0017412]
[1643834981435,0.7762721,2705.1,2704.9,0.0017412]
[1643834981635,4.09703261,2705.0,2704.7,0.1864412]
[1643834981835,0.19703261,2705.0,2704.7,0.1864412]
[1643834982035,0.1847,2705.2,2704.7,0.1864412]
[1643834982237,2.81145174,2705.8,2704.7,0.1847]
[1643834982435,1.5669224,2705.7,2704.7,0.1847]
[1643834982735,0.1847,2705.6,2704.7,0.1847]
[1643834982939,0.95679911,2705.4,2704.8,0.0017412]
[1643834983336,1.56699332,2705.3,2704.8,0.0017412]
[1643834983538,1.56699332,2705.3,2704.5,0.92424]
[1643834983539,1.56699332,2705.3,2704.6,0.0017412]
[1643834983738,0.19332796,2705.1,2704.6,0.0017412]
[1643834983939,0.95156022,2705.4,2704.8,0.93117501]
[1643834984140,0.00523901,2705.2,2704.9,0.0017412]
[1643834984782,0.00523901,2705.2,2704.7,0.20864541]
[1643834984981,0.21200254,2705.3,2704.7,0.20864541]
[1643834985182,0.21200254,2705.3,2704.6,0.19389506]
[1643834985383,0.00523901,2705.2,2704.7,0.00174135]
[1643834985587,0.1847,2705.7,2704.7,0.00174135]
[1643834985785,0.1847,2705.7,2704.9,0.28]
[1643834985986,0.1847,2705.7,2705.0,0.00174135]
[1643834985987,1.56695739,2705.6,2705.0,0.00174135]
[1643834986188,1.56695739,2705.6,2705.3,0.28]
[1643834986387,0.19750991,2706.0,2705.3,0.28]
[1643834986589,1.56664988,2705.9,2705.4,1.12130922]
[1643834986793,0.7008847,2706.6,2705.8,0.28]
[1643834986794,0.1847,2706.6,2705.8,0.28]
[1643834986987,0.93451293,2707.2,2705.9,2.14564943]
[1643834986988,1.56641008,2706.5,2705.9,2.14564943]
[1643834987188,0.1847,2707.0,2706.4,0.28]
[1643834987389,0.01280457,2707.2,2706.5,2.16611774]
[1643834987390,1.56633324,2706.9,2706.5,2.16611774]
[1643834987589,0.1847,2707.5,2706.7,0.28]
[1643834987791,0.7008847,2707.7,2706.7,0.28]
[1643834987792,1.56608178,2707.4,2707.1,0.70978842]
[1643834987988,0.35073694,2707.6,2706.7,0.28]
[1643834987989,1.56608178,2707.3,2706.7,0.28]
[1643834988259,0.7008847,2706.9,2706.4,0.1845]
[1643834988454,1.56608178,2706.8,2706.2,0.1847]
[1643834988655,1.56608178,2706.8,2705.9,0.1847]
[1643834988855,1.56608178,2706.7,2706.1,0.74394653]
[1643834989056,0.19048203,2706.6,2706.1,1.02394653]
[1643834989254,1.56608178,2706.5,2706.1,0.74394653]
[1643834989753,1.56608178,2706.5,2706.0,0.49692958]
[1643834989754,1.56608178,2706.5,2705.9,0.1847]
[1643834989961,2.26696648,2706.5,2705.9,0.1847]
[1643834990154,0.00523774,2706.4,2705.9,0.1847]
[1643834990358,1.75601952,2706.4,2705.9,0.1847]
[1643834990655,1.56608178,2706.3,2706.2,0.28]
[1643834991256,1.56608178,2706.3,2706.1,0.86970771]
[1643834991460,1.56608178,2706.6,2706.2,4.70766402]
[1643834991657,0.1847,2707.1,2706.5,0.28]
[1643834991856,4.75770733,2707.7,2706.5,0.28]
[1643834991857,1.56617358,2707.0,2706.5,0.28]
[1643834992092,0.93451293,2707.5,2706.2,8.41829624]
[1643834992093,1.56617358,2706.9,2706.2,8.41829624]
[1643834992289,1.56617358,2706.8,2706.2,8.41829624]
[1643834992489,1.11921293,2707.6,2706.2,8.41829624]
[1643834992490,0.17437099,2707.1,2706.7,0.85287299]
[1643834992689,1.56613824,2707.0,2706.8,0.28]
[1643834994489,2.25,2706.9,2706.5,0.94533491]
[1643834994690,1.11921293,2707.4,2706.7,0.92345]
[1643834994691,1.56613824,2706.8,2706.7,0.92345]
[1643834994892,0.8855847,2707.5,2706.7,3.06502256]
[1643834995094,1.56603791,2707.4,2706.7,2.14157256]
[1643834995293,0.01225476,2708.2,2706.7,2.14157256]
[1643834995294,1.56603791,2707.3,2706.8,1.1845]
[1643834995491,0.7008847,2708.0,2706.9,2.59658536]
[1643834995748,0.1845,2707.9,2707.7,0.95346259]
[1643834996437,0.1845,2707.9,2707.7,0.95031959]
[1643834996635,0.1845,2707.9,2707.5,0.92317]
[1643834996839,0.8853847,2707.9,2707.0,1.84651]
[1643834997035,0.8853847,2707.9,2706.9,1.85025136]
[1643834997435,0.00523051,2707.8,2706.9,1.85025136]
[1643834997834,0.00523051,2707.8,2707.4,0.85865633]
[1643834998235,0.1845,2707.9,2707.4,0.85865633]
[1643834998436,0.00523062,2707.7,2707.4,0.85865633]
[1643834998637,0.00523062,2707.7,2706.9,1.85025136]
[1643834998839,0.00523062,2707.7,2707.3,0.92322]
[1643834999239,0.00523062,2707.7,2706.9,0.00391136]
[1643834999485,0.21960213,2707.1,2706.9,0.00391136]
[1643834999685,0.00523073,2707.6,2706.9,0.67505511]
[1643835000084,0.70068707,2707.5,2706.9,0.67505511]
[1643835000286,0.70068707,2707.5,2706.6,2.03123]
[1643835000287,5.2,2707.4,2706.6,2.03123]
[1643835000589,5.2,2707.4,2705.9,1.39448]
[1643835000590,0.01281836,2706.7,2705.8,0.13819997]
[1643835000785,0.01281836,2706.7,2705.2,7.00105]
[1643835000786,0.6277,2706.6,2705.2,7.00105]
[1643835000985,0.6277,2706.6,2705.1,7.1642]
[1643835000986,2.0,2706.5,2705.7,0.00523412]
[1643835001184,0.6277,2706.4,2705.7,0.00523412]
[1643835001395,0.87594511,2706.3,2705.7,0.00523412]
[1643835001588,1.76589996,2706.2,2705.7,3.412e-05]
[1643835001787,6.19999999,2705.8,2705.0,0.0017347]
[1643835001988,0.6277,2705.7,2705.0,0.0017347]
[1643835002189,0.6277,2705.7,2703.9,3.6109]
[1643835002190,6.19999999,2705.1,2704.1,0.1847]
[1643835002387,6.19999999,2705.1,2704.4,0.00173528]
[1643835002388,2.82543793,2705.0,2704.4,0.00173528]
[1643835002697,1.02596345,2704.9,2704.4,0.00173528]
[1643835002888,1.02596345,2704.9,2704.1,0.01293126]
[1643835003087,2.0,2704.8,2704.1,0.01293126]
[1643835003346,2.0,2704.8,2703.8,0.00173528]
[1643835003347,1.19773792,2704.5,2703.8,0.00173528]
[1643835003549,0.16248099,2704.3,2704.0,0.00173528]
[1643835003746,0.78342749,2704.2,2704.0,0.00173528]
[1643835003952,0.16248099,2704.3,2704.0,0.00173528]
[1643835004148,0.16248099,2704.3,2703.8,0.93723661]
[1643835004648,0.16248099,2704.3,2704.0,0.00296456]
[1643835005248,0.1849,2704.9,2704.0,0.00296456]
[1643835005450,0.1849,2704.9,2703.9,1.85043528]
[1643835005451,0.1849,2704.9,2704.6,0.76055435]
[1643835005650,0.1847,2705.2,2704.6,0.91963446]
[1643835005950,0.67444386,2705.4,2704.6,1.84833]
[1643835006149,0.2124877,2704.9,2704.6,1.84833]
[1643835006551,0.67444386,2705.4,2704.7,0.92417]
[1643835007005,0.1847,2705.6,2704.7,0.92417]
[1643835007209,0.1847,2705.6,2704.6,4.38837136]
[1643835007410,0.1847,2705.9,2705.1,1.8481]
[1643835007709,0.1847,2706.2,2705.7,0.92403]
[1643835007907,0.19773793,2707.1,2705.5,2.01817277]
[1643835007908,0.96708055,2706.6,2705.5,2.01817277]
[1643835008107,0.1847,2706.7,2705.8,0.92122709]
[1643835008306,0.2097692,2707.1,2705.8,0.92122709]
[1643835008307,0.1847,2707.0,2706.2,1.84735]
[1643835008509,0.1847,2707.0,2706.7,0.92363]
[1643835008707,0.15923958,2706.9,2706.5,1.84725]